Workbook

Sheet hiddenSheet (hidden)
A1: nei | B1: Sørlandet sykehus HF | F1: Referanser_Ref
A2: UB | B2: D19123 | F2: 1
A3: DOK | B3: Ernæringsberegning for intensivpasienter - NutriCalc | F3: Referanser_Ved
A4: EK_Avdeling¤2#4¤2# ¤3#EK_Avsnitt¤2#4¤2# ¤3#EK_Bedriftsnavn¤2#1¤2#Sørlandet sykehus HF¤3#EK_GjelderFra¤2#0¤2#29.05.2022¤3#EK_KlGjelderFra¤2#0¤2#¤3#EK_Opprettet¤2#0¤2#18.10.2008¤3#EK_Utgitt¤2#0¤2#29.10.2008¤3#EK_IBrukDato¤2#0¤2#30.05.2022¤3#EK_DokumentID¤2#0¤2#D19123¤3#EK_DokTittel¤2#0¤2#Ernæringsberegning for intensivpasienter - NutriCalc¤3#EK_DokType¤2#0¤2#Retningslinje¤3#EK_DocLvlShort¤2#0¤2# ¤3#EK_DocLevel¤2#0¤2# ¤3#EK_EksRef¤2#2¤2# 0 ¤3#EK_Erstatter¤2#0¤2#7.47¤3#EK_ErstatterD¤2#0¤2#27.01.2022¤3#EK_Signatur¤2#0¤2#Avd.led. E. Huldt-Nystrøm¤3#EK_Verifisert¤2#0¤2#- Avd.led. E. Huldt-Nystrøm, - Avd.led. E. Huldt-Nystrøm¤3#EK_Hørt¤2#0¤2# ¤3#EK_AuditReview¤2#2¤2# ¤3#EK_AuditApprove¤2#2¤2# ¤3#EK_Gradering¤2#0¤2#Åpen¤3#EK_Gradnr¤2#4¤2#0¤3#EK_Kapittel¤2#4¤2# ¤3#EK_Referanse¤2#2¤2# 1 II.SOA.AIO.SSA.2.a-13 Ernæringsbehandling av intensivpasienter, SSA 02834 dok02834.docx ¤1#¤3#EK_RefNr¤2#0¤2#II.SOA.AIO.SSA.2.a-24¤3#EK_Revisjon¤2#0¤2#7.48¤3#EK_Ansvarlig¤2#0¤2#Vegard Tørå Dokka¤3#EK_SkrevetAv¤2#0¤2#V. Skogstrøm¤3#EK_DokAnsvNavn¤2#0¤2#V. Dokka, ovl.¤3#EK_UText2¤2#0¤2# ¤3#EK_UText3¤2#0¤2# ¤3#EK_UText4¤2#0¤2# ¤3#EK_Status¤2#0¤2#I bruk¤3#EK_Stikkord¤2#0¤2#kalorier TPN protein sondeernæring parenteral enteral mNUTRIC NUTRIC¤3#EK_SuperStikkord¤2#0¤2#¤3#EK_Rapport¤2#3¤2#¤3#EK_EKPrintMerke¤2#0¤2#¤3#EK_Watermark¤2#0¤2#¤3#EK_Utgave¤2#0¤2#7.48¤3#EK_Merknad¤2#7¤2#¤3#EK_VerLogg¤2#2¤2#Ver. 7.48 - 30.05.2022|¤1#Ver. 7.47 - 27.01.2022|¤1#Ver. 7.46 - 23.11.2021|¤1#Ver. 7.45 - 18.03.2021|¤1#Ver. 7.44 - 04.10.2019|¤1#Ver. 7.43 - 04.10.2019|¤1#Ver. 7.42 - 12.11.2018|¤1#Ver. 7.41 - 28.10.2018|¤1#Ver. 7.40 - 27.10.2018|¤1#Ver. 7.39 - 20.10.2018|¤3#EK_RF1¤2#4¤2# ¤3#EK_RF2¤2#4¤2# ¤3#EK_RF3¤2#4¤2# ¤3#EK_RF4¤2#4¤2# ¤3#EK_RF5¤2#4¤2# ¤3#EK_RF6¤2#4¤2# ¤3#EK_RF7¤2#4¤2# ¤3#EK_RF8¤2#4¤2# ¤3#EK_RF9¤2#4¤2# ¤3#EK_Mappe1¤2#4¤2# ¤3#EK_Mappe2¤2#4¤2# ¤3#EK_Mappe3¤2#4¤2# ¤3#EK_Mappe4¤2#4¤2# ¤3#EK_Mappe5¤2#4¤2# ¤3#EK_Mappe6¤2#4¤2# ¤3#EK_Mappe7¤2#4¤2# ¤3#EK_Mappe8¤2#4¤2# ¤3#EK_Mappe9¤2#4¤2# ¤3#EK_DL¤2#0¤2#24¤3#EK_GjelderTil¤2#0¤2#29.05.2024¤3#EK_Vedlegg¤2#2¤2# 0 ¤3#EK_AvdelingOver¤2#4¤2# ¤3#EK_HRefNr¤2#0¤2# ¤3#EK_HbNavn¤2#0¤2# ¤3#EK_DokRefnr¤2#4¤2#00020102040201¤3#EK_Dokendrdato¤2#4¤2#05.05.2022 15:56:57¤3#EK_HbType¤2#4¤2# ¤3#EK_Offisiell¤2#4¤2# ¤3#EK_VedleggRef¤2#4¤2#II.SOA.AIO.SSA.2.a-24¤3#EK_Strukt00¤2#5¤2#¤5#II¤5#Klinikknivå¤5#0¤5#0¤4#.¤5#SOA¤5#Somatikk Arendal¤5#0¤5#0¤4#.¤5#AIO¤5#Anestesi, Intensiv, Operasjon¤5#0¤5#0¤4#.¤5#SSA¤5#Intensiv - SSA¤5#2¤5#0¤4#.¤5#2¤5#Pasienter og brukere¤5#0¤5#0¤4#.¤5#a¤5#Behandlingsrutiner¤5#0¤5#0¤4#\¤3#EK_Strukt01¤2#5¤2#¤3#EK_Pub¤2#6¤2#;2;1;¤3#EKR_DokType¤2#0¤2# ¤3#EKR_Doktittel¤2#0¤2# ¤3#EKR_DokumentID¤2#0¤2# ¤3#EKR_RefNr¤2#0¤2# ¤3#EKR_Gradering¤2#0¤2# ¤3#EKR_Signatur¤2#0¤2# ¤3#EKR_Verifisert¤2#0¤2# ¤3#EKR_Hørt¤2#0¤2# ¤3#EKR_AuditReview¤2#2¤2# ¤3#EKR_AuditApprove¤2#2¤2# ¤3#EKR_AuditFinal¤2#2¤2# ¤3#EKR_Dokeier¤2#0¤2# ¤3#EKR_Status¤2#0¤2# ¤3#EKR_Opprettet¤2#0¤2# ¤3#EKR_Endret¤2#0¤2# ¤3#EKR_Ibruk¤2#0¤2# ¤3#EKR_Rapport¤2#3¤2# ¤3#EKR_Utgitt¤2#0¤2# ¤3#EKR_SkrevetAv¤2#0¤2# ¤3#EKR_UText1¤2#0¤2# ¤3#EKR_UText2¤2#0¤2# ¤3#EKR_UText3¤2#0¤2# ¤3#EKR_UText4¤2#0¤2# ¤3#EKR_DokRefnr¤2#4¤2# ¤3#EKR_Gradnr¤2#4¤2# ¤3#EKR_Strukt00¤2#5¤2#¤5#II¤5#Klinikknivå¤5#0¤5#0¤4#.¤5#SOA¤5#Somatikk Arendal¤5#0¤5#0¤4#.¤5#AIO¤5#Anestesi, Intensiv, Operasjon¤5#0¤5#0¤4#.¤5#SSA¤5#Intensiv - SSA¤5#2¤5#0¤4#.¤5#2¤5#Pasienter og brukere¤5#0¤5#0¤4#.¤5#a¤5#Behandlingsrutiner¤5#0¤5#0¤4#\¤3# | B4: Retningslinje | F4: 0
A5: 2.2 | B5: V. Skogstrøm | F5: Referanser_Eks
A6: 0 | B6: Avd.led. E. Huldt-Nystrøm | F6: 0
A7: ikke lagre | B7: 24.05.2024
A8: ___ | B8: 7.49
A9: ___ | B9: II.SOA.AIO.SSA.2.a-23
A10: ___
A11: lagre
A12: -2

Sheet SSHF
B1: NutriCalc | D1: Beregning av ernæring til intensivpasienter | P1: Kalkuler risiko - mNUTRIC | V1: Antall bolus/døgn | Y1: 1234visk | AJ1: B6 - Posealt: | AK1: B8 - Posealt: | AL1: B10 - Posealt: | AM1: B12 - Paknalt: | AN1: B14 - Paknalt: | AO1: B16 - Paknalt: | AP1: B20 - Posealt: | AQ1: B27 - Posealt: | AR1: B33 - Paknalt: | AS1: B22 - Paknalt: | AT1: B23 - Paknalt: | AU1: B29 - Paknalt:
M2: ENERGI | O2: PROTEIN | R2: KARBOHYDRAT . | S2: LIPID | V2: 6 | AP2: =LOOKUP(B$20,D$167:D$193,I$167:I$193) -> 493
B3: Energinivå: | D3: kcal/kg/d | F3: BMI: | G3: =IF(G4=0," ",C4/((G4*0.01)*(G4*0.01))) ->  | H3: kg/m2 | M3: TOTALT energibehov pr. døgn : | O3: 1,2 - 2,5 | P3: g/kg/d | Q3: 2,0 - 5,0 | R3: g/kg/d | S3: 0,75 - 1,5 | T3: g/kg/d ← | U3: REF.VERDI | V3: 5 | Y3: OPPSLAGSTABELLER OG SKJULTE FORMELER | AJ3: =LOOKUP(B$6,D$61:D$121,J$61:J$121) -> 0 | AK3: =LOOKUP(B$8,D$61:D$121,J$61:J$121) -> 0 | AL3: =LOOKUP(B$10,D$124:D$164,J$124:J$164) -> 125 | AM3: =LOOKUP(B$12,D$124:D$164,J$124:J$164) -> 0 | AN3: =LOOKUP(B$14,D$49:D$53,I$49:I$53) -> 500 | AO3: =LOOKUP(B$16,P$49:P$57,R$49:R$57) -> 500 | AP3: =LOOKUP(B$20,D$167:D$193,J$167:J$193) -> 986 | AQ3: =LOOKUP(B$27,D$196:D$207,J$196:J$207) -> 0 | AR3: =LOOKUP(B$33,D$210:D$218,J$210:J$218) -> 100 | AS3: =LOOKUP(B$22,D$222:D$227,J$222:J$227) -> 0 | AT3: =LOOKUP(B$23,D$222:D$227,J$222:J$227) -> 0 | AU3: =LOOKUP(B$29,D$222:D$227,J$222:J$227) -> 0
B4: Akt. vekt: | D4: kg | F4: Høyde: | H4: cm | L4: Beregnet behov (evt. målt): | M4: =IF(OR(G4=0,C3=0,C4=0),0,M5) -> 0 | N4: kcal | O4: Non-prot energi / N = REF : 80 - 100 | V4: 4 | Y4: total | Z4: non-prot | AJ4: =LOOKUP(B$6,D$61:D$121,L$61:L$121) -> 500 | AK4: =LOOKUP(B$8,D$61:D$121,L$61:L$121) -> 500 | AL4: =LOOKUP(B$10,D$124:D$164,L$124:L$164) -> 0 | AM4: =LOOKUP(B$12,D$124:D$164,L$124:L$164) -> 250 | AN4: =LOOKUP(B$14,D$49:D$53,J$49:J$53) -> 0 | AO4: =LOOKUP(B$16,P$49:P$57,S$49:S$57) -> 1000 | AP4: =LOOKUP(B$20,D$167:D$193,L$167:L$193) -> 1477 | AQ4: =LOOKUP(B$27,D$196:D$207,L$196:L$207) -> 500 | AR4: =LOOKUP(B$33,D$210:D$218,L$210:L$218) -> 250 | AS4: =LOOKUP(B$22,D$222:D$227,L$222:L$227) -> 50 | AT4: =LOOKUP(B$23,D$222:D$227,L$222:L$227) -> 50 | AU4: =LOOKUP(B$29,D$222:D$227,L$222:L$227) -> 50
B5: ENTeral sondeløsning: | G5: Kontinuerlig ml/time | I5: ml/døgn | M5: =IF(G3>23,C3*I39,((C3*(I39+((C4-I39)*0.5))))) ->  | O5: PROTEIN | Q5: KARBOHYDRAT | S5: LIPID | U5: Pakning | Y5: kcal-N | Z5: kcal-O | AA5: prot-P | AB5: karboh-Q | AC5: fett-R | AD5: glutamin-S | AE5: EPA -T | AF5: DHA -U | AG5: SUM epa+dha/d | AH5: Glutamin/d | AJ5: =LOOKUP(B$6,D$61:D$121,M$61:M$121) -> 0 | AK5: =LOOKUP(B$8,D$61:D$121,M$61:M$121) -> 0 | AL5: =LOOKUP(B$10,D$124:D$164,M$124:M$164) -> 0 | AM5: =LOOKUP(B$12,D$124:D$164,M$124:M$164) -> 0 | AP5: =LOOKUP(B$20,D$167:D$193,M$167:M$193) -> 1970 | AQ5: =LOOKUP(B$27,D$196:D$207,M$196:M$207) -> 0 | AR5: =LOOKUP(B$33,D$210:D$218,M$210:M$218) -> 500 | AS5: =LOOKUP(B$22,D$222:D$227,M$222:M$227) -> 100 | AT5: =LOOKUP(B$23,D$222:D$227,M$222:M$227) -> 100 | AU5: =LOOKUP(B$29,D$222:D$227,M$222:M$227) -> 100
B6: Peptamen AF ( hydrol.protein) | I6: =G6*24 -> 0 | L6: Total energi | M6: =Y6*G6*24 -> 0 | N6: kcal | O6: =AA6*G6*24 -> 0 | P6: g | Q6: =AB6*G6*24 -> 0 | R6: g | S6: =AC6*G6*24 -> 0 | Y6: =LOOKUP($B6,$D61:$D117,O61:O117) -> 1.52 | Z6: 1.12 | AA6: 0.094 | AB6: 0.14 | AC6: 0.065 | AD6: 0.00752 | AE6: 0.0027 | AF6: 0 | AG6: =(AE6+AF6)*I6 -> 0 | AH6: =I6*AD6 -> 0 | AJ6: =LOOKUP(B$6,D$61:D$121,N$61:N$121) -> 0 | AK6: =LOOKUP(B$8,D$61:D$121,N$61:N$121) -> 0 | AL6: =LOOKUP(B$10,D$124:D$164,N$124:N$164) -> 0 | AM6: =LOOKUP(B$12,D$124:D$164,N$124:N$164) -> 0 | AP6: =LOOKUP(B$20,D$167:D$193,N$167:N$193) -> 2463 | AQ6: =LOOKUP(B$27,D$196:D$207,N$196:N$207) -> 0 | AR6: =LOOKUP(B$33,D$210:D$218,N$210:N$218) -> 0 | AS6: =LOOKUP(B$22,D$222:D$227,N$222:N$227) -> 0 | AT6: =LOOKUP(B$23,D$222:D$227,N$222:N$227) -> 0 | AU6: =LOOKUP(B$29,D$222:D$227,N$222:N$227) -> 0
B7: Måltids-Bolus - | G7: Gis over 20-40 min - ml/bolus | I7: ml/døgn | J7: Antall bolus: | L7: 6
B8: Peptamen AF ( hydrol.protein) | I8: =G8*L7 -> 0 | L8: Total energi | M8: =Y8*G8*L7 -> 0 | N8: kcal | O8: =AA8*G8*L7 -> 0 | P8: g | Q8: =AB8*G8*L7 -> 0 | R8: g | S8: =AC8*G8*L7 -> 0 | Y8: =LOOKUP($B8,$D61:$D117,O61:O117) -> 1.52 | Z8: 1.12 | AA8: 0.094 | AB8: 0.14 | AC8: 0.065 | AD8: 0.00752 | AE8: 0.0027 | AF8: 0 | AG8: =(AE8+AF8)*I8 -> 0 | AH8: =I8*AD8 -> 0
B9: ENTerale ernæringsdrikker: | I9: ml/døgn | O9: PROTEIN | Q9: KARBOHYDRAT | S9: LIPID | U9: Pakning
B10: Nutridrink Compact Protein | L10: Total energi | M10: =Y10*I10 -> 0 | N10: kcal | O10: =AA10*I10 -> 0 | P10: g | Q10: =AB10*I10 -> 0 | R10: g | S10: =AC10*I10 -> 0 | Y10: =LOOKUP($B10,$D124:$D164,O124:O164) -> 2.4 | Z10: 1.82 | AA10: 0.144 | AB10: 0.244 | AC10: 0.094 | AD10: 0.01152 | AE10: 0 | AF10: 0 | AG10: =(AE10+AF10)*I10 -> 0 | AH10: =I10*AD10 -> 0
B12: Omega-3 Tran Møllers ( Vit A+D ) | L12: Total energi | M12: =Y12*I12 -> 0 | N12: kcal | O12: =AA12*I12 -> 0 | P12: g | Q12: =AB12*I12 -> 0 | R12: g | S12: =AC12*I12 -> 0 | Y12: =LOOKUP($B12,$D124:$D164,O124:O164) -> 8.1 | Z12: 8.1 | AA12: 0 | AB12: 0 | AC12: 0.9 | AD12: 0 | AE12: 0.12 | AF12: 0.16 | AG12: =(AE12+AF12)*I12 -> 0 | AH12: =I12*AD12 -> 0
B13: PARENTerale Glucose-løsninger: | G13: ml/time | I13: ml/døgn | O13: PROTEIN | Q13: KARBOHYDRAT | S13: LIPID | U13: Pakning | AB13: karboh-J
B14: Glucose 20 % | I14: =G14*24 -> 0 | L14: Total energi | M14: =4*AB14*G14*24 -> 0 | N14: kcal | Q14: =AB14*G14*24 -> 0 | R14: g | AB14: =LOOKUP($B14,$D49:$D52,L49:L52) -> 0.2
B16: NaCl 4,5 - Gluc 25 mg/ml | I16: =G16*24 -> 0 | L16: Total energi | M16: =4*AB16*G16*24 -> 0 | N16: kcal | Q16: =AB16*G16*24 -> 0 | R16: g | AB16: =LOOKUP(B16,P49:P58,T49:T58) -> 0.025
B17: PARENTerale Storpose-løsninger: | G17: ml/time | I17: ml/døgn | J17: =IF(L20=0,Y18,L17) -> 0 | L17: =I20+Y18 -> 0 | O17: PROTEIN | Q17: KARBOHYDRAT | S17: LIPID | U17: Pakning | V17: Dersom Hastighet viser "Pose" settes inn 0 | Y17: kcal-N | Z17: kcal-O | AA17: prot-P | AB17: karboh-Q | AC17: fett-R | AD17: glutamin-S | AE17: EPA -T | AF17: DHA -U | AG17: SUM epa+dha/d | AH17: Glutamin/d | AJ17: Glutamin/d | AK17: EPA/d | AL17: DHA/d | AM17: SUM epa+dha/d
B18: Forslag til volum for 100 % energidekning: | I18: =IF(J17<0,0,J17) -> 0 | J18: MÅ velge posevolum fra liste | V18: Prot | W18: Karboh: | X18: Fett | Y18: =(M4-SUM(M6:M33))/Y20 -> 0 | Z18: Formel: Manglende volum for energidekning | AI18: Dersom hastighet ="Pose" settes inn 0 | AM18: Dersom hastighet ="Pose" settes inn 0
I19: J
B20: SMOF Kabiven 550 - 2700 kcal | G20: =I20/24 -> 0 | J20: Posevolum: | M20: =IF(G24="Pose",0,V24) -> 0 | N20: kcal | O20: =IF(G24="Pose",0,V20) -> 0 | P20: g | Q20: =IF(G24="Pose",0,W20) -> 0 | R20: g | S20: =IF(G24="Pose",0,X20) -> 0 | T20: g | U20: se posevol | V20: =AA20*I20 -> 0 | W20: =AB20*I20 -> 0 | X20: =AC20*I20 -> 0 | Y20: =LOOKUP($B20,$D167:$D193,O167:O193) -> 1.1 | Z20: 0.89 | AA20: 0.05 | AB20: 0.12 | AC20: 0.038 | AD20: 0 | AE20: 0.0008892 | AF20: 0.0008322 | AG20: =IF(G24="Pose",0,AM20) -> 0 | AH20: =IF(G24="Pose",0,AJ20) -> 0 | AJ20: =I20*AD20 -> 0 | AM20: =(AE20+AF20)*I20 -> 0
B22: Dipeptiven | F22: ml tilsatt: | I22: =L20+0.0001 -> 0.0001 | J22: ml posevolum | M22: =IF(G24="Pose",0,W24) -> 0 | N22: kcal | O22: =IF(G24="Pose",0,V22) -> 0 | P22: g | Q22: =IF(G24="Pose",0,W22) -> 0 | R22: g | S22: =IF(G24="Pose",0,X22) -> 0 | V22: =AA22*(E22/(E22+E23+I22))*Y24*24 -> 0 | W22: =AB22*(E22/(E22+E23+I22))*Y24*24 -> 0 | X22: =AC22*(E22/(E22+E23+I22))*Y24*24 -> 0 | Y22: =LOOKUP($B22,$D222:$D227,O222:O227) -> 0.97 | Z22: 0 | AA22: 0.24 | AB22: 0 | AC22: 0 | AD22: 0.134 | AE22: 0 | AF22: 0 | AG22: =IF(G24="Pose",0,AM22) -> 0 | AH22: =IF(G24="Pose",0,AJ22) -> 0 | AJ22: =AD22*E22/(E22+E23+I22)*Y24*24 -> 0 | AK22: =AE22*(E22/(E22+E23+I22))*Y24*24 -> 0 | AL22: =AF22*(E22/(E22+E23+I22))*Y24*24 -> 0 | AM22: =AK22+AL22 -> 0
B23: Omegaven | F23: ml tilsatt: | I23: =L20+0.0001 -> 0.0001 | J23: ml posevolum | M23: =IF(G24="Pose",0,X24) -> 0 | N23: kcal | O23: =IF(G24="Pose",0,V23) -> 0 | P23: g | Q23: =IF(G24="Pose",0,W23) -> 0 | R23: g | S23: =IF(G24="Pose",0,X23) -> 0 | V23: =AA23*(E23/(E23+E22+I23))*Y24*24 -> 0 | W23: =AB23*(E23/(E23+E22+I23))*Y24*24 -> 0 | X23: =AC23*(E23/(E23+E22+I23))*Y24*24 -> 0 | Y23: =LOOKUP($B23,$D222:$D228,O222:O228) -> 1.12 | Z23: 1.12 | AA23: 0 | AB23: 0 | AC23: 0.1 | AD23: 0 | AE23: 0.019 | AF23: 0.0164 | AG23: =IF(G24="Pose",0,AM23) -> 0 | AH23: =IF(G24="Pose",0,AJ23) -> 0 | AJ23: =AD23*E23/(E23+E22+I23)*Y24*24 -> 0 | AK23: =AE23*E23/(E23+E22+I23)*Y24*24 -> 0 | AL23: =AF23*(E23/(E23+E22+I23))*Y24*24 -> 0 | AM23: =AK23+AL23 -> 0
B24: ¨ STORPOSE - Hastighet kontinuerlig: | G24: =IF(AND(I20>0,L20=0),"Pose",Y24) -> 4.162504163e-06 | H24: ml /time | O24: Nitrogen ≈ Protein / 6,25 | V24: =Y20*I20 -> 0 | W24: =Y22*(E22/(E22+E23+I22))*Y24*24 -> 0 | X24: =Y23*(E23/(E23+E22+I23))*Y24*24 -> 0 | Y24: =I43/24 -> 4.162504163e-06 | Z24: Formel: Storpose - hastighet
B26: PARENTerale Aminosyre-løsninger: | G26: ml/time | I26: ml/døgn | O26: PROTEIN | Q26: KARBOHYDRAT | S26: LIPID | U26: Pakning | V26: Prot | W26: Karboh: | X26: Fett | Y26: kcal-N | Z26: kcal-O | AA26: prot-P | AB26: karboh-Q | AC26: fett-R | AD26: glutamin-S | AE26: EPA -T | AF26: DHA -U | AG26: SUM epa+dha/d | AH26: Glutamin/d
B27: Vamin 18 gN/l | G27: =I27/24 -> 0 | J27: Posevolum: | M27: =IF(G30="Pose",0,W30) -> 0 | N27: kcal | O27: =IF(G30="Pose",0,V27) -> 0 | P27: g | Q27: =IF(G30="Pose",0,W27) -> 0 | R27: g | S27: =IF(G30="Pose",0,X27) -> 0 | T27: g | U27: se posevol | V27: =AA27*I27 -> 0 | W27: =AB27*I27 -> 0 | X27: =AC27*I27 -> 0 | Y27: =LOOKUP($B27,$D196:$D207,O196:O207) -> 0.46 | Z27: 0 | AA27: 0.112 | AB27: 0 | AC27: 0 | AD27: 0 | AE27: 0 | AF27: 0 | AG27: =IF(G30="Pose",0,AM27) -> 0 | AH27: =IF(G30="Pose",0,AJ27) -> 0 | AJ27: =I27*AD27 -> 0 | AM27: =(AE27+AF27)*I27 -> 0
B29: Dipeptiven | F29: ml tilsatt: | I29: =L27+0.0001 -> 0.0001 | J29: ml posevolum | M29: =IF(G30="Pose",0,X30) -> 0 | N29: kcal | O29: =IF(G30="Pose",0,V29) -> 0 | P29: g | Q29: =IF(G30="Pose",0,W29) -> 0 | R29: g | S29: =IF(G30="Pose",0,X29) -> 0 | V29: =AA29*E29/(E29+I29)*Y30*24 -> 0 | W29: =AB29*E29/(E29+I29)*Y30*24 -> 0 | X29: =AC29*E29/(E29+I29)*Y30*24 -> 0 | Y29: =LOOKUP($B29,$D222:$D227,O222:O227) -> 0.97 | Z29: 0 | AA29: 0.24 | AB29: 0 | AC29: 0 | AD29: 0.134 | AE29: 0 | AF29: 0 | AG29: =IF(G30="Pose",0,AM29) -> 0 | AH29: =IF(G30="Pose",0,AJ29) -> 0 | AJ29: =((E29*AD29)/(E29+I29))*Y30*24 -> 0 | AK29: =AE29*E29/(E29+I29)*Y30*24 -> 0 | AL29: =AF29*(E29/(E29+I29))*Y30*24 -> 0 | AM29: =AK29+AL29 -> 0
B30: ¨ AMINOSYRER - Hastighet kontinuerlig: | G30: =IF(AND(I27>0,L27=0),"Pose",Y30) -> 4.162504163e-06 | H30: ml /time | L30: =B38 -> ANDRE energikilder: | M30: =(Y39*E39/X39*C4*24)+(E40*80) -> 0 | N30: kcal | O30: =AA39*E39/X39*C4*24 -> 0 | P30: g | Q30: =AB39*E39/X39*C4*24 -> 0 | R30: g | S30: =AC39*E39/X39*C4*24 -> 0 | T30: g | V30: Kalorier: | W30: =Y27*I27 -> 0 | X30: =Y29*E29/(E29+I29)*Y30*24 -> 0 | Y30: =I44/24 -> 4.162504163e-06 | Z30: Formel: Aminosyreløsn. - hastighet
B32: PARENTerale Lipid-løsninger: | G32: ml/time | I32: ml/døgn | O32: PROTEIN | Q32: KARBOHYDRAT | S32: LIPID | U32: Pakning | Y32: kcal-N | Z32: kcal-O | AA32: prot-P | AB32: karboh-Q | AC32: fett-R | AD32: glutamin-S | AE32: EPA -T | AF32: DHA -U | AG32: SUM epa+dha/d | AH32: Glutamin/d
B33: SMOFlipid 200 mg/ml | G33: =I33/24 -> 0 | J33: Posevolum: | M33: =Y33*I33 -> 0 | N33: kcal | O33: =AA33*I33 -> 0 | P33: g | Q33: =AB33*I33 -> 0 | R33: g | S33: =AC33*I33 -> 0 | T33: g | U33: se posevol | Y33: =LOOKUP($B33,$D210:$D218,O210:O218) -> 2 | Z33: 2 | AA33: 0 | AB33: 0 | AC33: 0.2 | AD33: 0 | AE33: =(LOOKUP($B33,$D210:$D218,U210:U218))*I33 -> 0 | AF33: =(LOOKUP($B33,$D210:$D218,V210:V218))*I33 -> 0 | AG33: =AE33+AF33 -> 0 | AH33: =I33*AD33 -> 0
B35: Manglende volum for 100 % energidekning: | I35: =IF(Y35>0,Y35,0) -> 0 | J35: ENERGIDEKNING: | M35: =IF(M4=0,0,M43) -> 0 | N35: % | O35: =IF(O38=0,0,O45) -> 0 | P35: % energi | Q35: =IF(Q38=0,0,Q45) -> 0 | R35: % energi | S35: =IF(S38=0,0,S45) -> 0 | T35: % energi | Y35: =(M4-SUM(M6:M33))/Y33 -> 0 | Z35: Formel: Manglende volum for energidekning
B36: ¨ LIPIDLØSNING - Hastighet kontinuerlig: | G36: =G33 -> 0 | H36: ml /time | L36: Gitt energi /Akt.kg/d: | M36: =IF(C4=0,0,M44) -> 0 | N36: kcal = | O36: =IF(I39=" ",0,N44) -> 0 | P36: kcal/kg IBW/d | Q36: =IF(OR(G4=0,C4=0),0,O44) -> 0 | R36: kcal/kgIBW/d Non-prot. energi | U36: EPA+DHA:
B38: ANDRE energikilder: | I38: Idealvekt (IBW): | N38: SUM TOTALT pr døgn : | O38: =SUM(O6:O33) -> 0 | P38: g | Q38: =SUM(Q6:Q33) -> 0 | R38: g | S38: =SUM(S6:S33) -> 0 | T38: g hvorav: | U38: =IF(AG38="Data mangler","-- data",V39) -> 0 | X38: mg/ml-N | Y38: kcal-N | Z38: kcal-O | AA38: prot-P | AB38: karboh-Q | AC38: fett-R | AD38: EPA+DHA /d: | AE38: =IF(AE40<0,"Data mangler",AE40) -> 0.1452892 | AF38: =IF(AF40<0,"Data mangler",AF40) -> 0.1772322 | AG38: =IF(AG40<0,"Data mangler",AG40) -> 0 | AH38: =IF(AH40<0,"Data mangler"," ") ->  | AI38: Glutamin /d:
B39: Propofol 20 mg/ml | F39: mg/kg/t | I39: =IF(G4=0," ",(5*I40+(I40/5)*(G4/2.54-60))/2.205) ->  | L39: SUM Protein energi: | M39: =SUM(O6:O33)*4 -> 0 | N39: kcal/dg | O39: =IF(I39=" ",0,O43) -> 0 | P39: g/kg IBW/d | Q39: =IF(I39=" ",0,Q43) -> 0 | R39: g/kg IBW/d | S39: =IF(I39=" ",0,S43) -> 0 | T39: g/kg IBW/d | U39: =IF(I39=" ",0,U43) -> 0 | V39: =AG38 -> 0 | W39: : Sum omega 3 | X39: =LOOKUP($B39,$D230:$D232,N230:N232) -> 20 | Y39: 1.1 | Z39: 0.9 | AA39: 0 | AB39: 0 | AC39: 0.12 | AE39: Dersom EPA el. DHA = -1 mangler data | AH39: Dersom glutamin = -1 mangler data
B40: Citrat-Target ved CRRT | F40: mmol/l | I40: =IF(AND(G3<=30.4,G3>=24.5),24,(IF(G3<24.5,23,25))) -> 25 | J40: Non-prot. energi / N: | M40: =IF(O38<0.1,0,Q44) -> 0 | N40: ratio | O40: =IF(I39=" "," ",(IF(G3<20," ",J43))) ->  | P40: ≈ Protein-mål etter 5-10 dager | S40: =IF(AND(Q39=0,S39=0),0,S44) -> 0 | U40: % Non-prot energi, fett | AD40: SUM: | AE40: =SUM(AE6:AE36) -> 0.1452892 | AF40: =SUM(AF6:AF36) -> 0.1772322 | AG40: =SUM(AG6:AG36) -> 0 | AH40: =SUM(AH6:AH36) -> 0
B41: VOLUM gitt som ernæring - Totalt / døgn: | I41: =SUM(I6:I16)+G24*24+G30*24+G36*24+E39/X39*C4*24 -> 0.0001998001998 | J41: ml | N41: GLUTAMIN : | O41: =IF(OR(C4=0,G4=0),0,U44) -> 0 | P41: g/kgIBW/d | Q41: REF: < 0,35 g/kgIBW/d | U41: =AH38 ->  | V41: =AH40/I39 ->  | W41: : Sum glutamin / kg / dg
B42: J17+K17+I43+I44+U39+U41+U17:W30+K43:T45 | I42: IBW er beregnet ved BMI 25 når aktuell BMI > 30 | S42: © Vidar Skogstrøm, Sørlandet sykehus Arendal, Norway | T42: Ver. | U42: =hiddenSheet!ek_gjelderfra -> 24.05.2024
G43: Kosentrasjonsjustering for storposevol: | I43: =(I20+0.1)*(E22+E23+I22)/(I22+0.1) -> 9.99000999e-05 | J43: =IF(AND(G3<=45,G3>24),(G3+9)/24,(IF(G3<=24,1.4,2.2))) -> 2.2 | L43: Energidekning: | M43: =100*(SUM(M6:M33))/M4 ->  | N43: Prot: | O43: =O38/I39 ->  | P43: Karboh: | Q43: =Q38/I39 ->  | R43: Fett: | S43: =S38/I39 ->  | T43: Omege3: | U43: =V39/I39 -> 
G44: Kosentrasjonsjustering for aminosyreposevol: | I44: =(I27+0.1)*(E29+I29)/(I29+0.1) -> 9.99000999e-05 | L44: pr.døgn | M44: =SUM(M6:M33)/C4 ->  | N44: =SUM(M6:M33)/I39 ->  | O44: =(SUM(M6:M33)-M39)/I39 ->  | P44: Energ/N: | Q44: =(SUM(M6:M33)-M39)/O38*6.25 ->  | R44: E fra fett: | S44: =100*S43*9/(Q43*4+S43*9) ->  | T44: Glutamin: | U44: =(IF(V41<0," -- data ",V41)) -> 
N45: Energi % justering ved 0 : | O45: =100*(O38*4/(S38*9+Q38*4+O38*4)) ->  | Q45: =100*(Q38*4/(S38*9+Q38*4+O38*4)) ->  | S45: =100*(S38*9/(S38*9+Q38*4+O38*4)) -> 
B47: >>>>>>> | C47: GLUCOSE LØSNINGER | L47: g/ml | N47: >>>>>>> | O47: GLUCOSE-ELEKTROLYTT LØSNINGER | T47: g/ml | U47: 1234visk
B48: Leverandør | D48: Produktnavn (stigende) | I48: Pakn. | J48: Pakn. | L48: Karboh | O48: Leverandør - | P48: Produktnavn (alfabetisk) | R48: Pakn. | S48: Pakn. | T48: Karboh
B49: Braun | D49: Glucose 5 % | I49: 500 | J49: 1000 | L49: 0.05 | N49: Braun | P49: Glucacel 1000 KJ | S49: 1000 | T49: 0.06
B50: Braun | D50: Glucose 10 % | I50: 500 | J50: 1000 | L50: 0.1 | N50: Braun | P50: Glukacel 2000 KJ | S50: 1000 | T50: 0.12
B51: Braun | D51: Glucose 20 % | I51: 500 | L51: 0.2 | N51: FreseniusKabi | P51: Karbolytt | R51: 500 | S51: 1000 | T51: 0.12
B52: Braun | D52: Glucose 50 % | I52: 500 | L52: 0.5 | N52: Baxter | P52: NaCl 4,5 - Gluc 25 mg/ml | R52: 500 | S52: 1000 | T52: 0.025
N53: Baxter | P53: NaCl 9 - Gluc 50 mg/ml | R53: 500 | S53: 1000 | T53: 0.05
N54: FreseniusKabi | P54: Rehydrex 25 mg/ml | R54: 500 | S54: 1000 | T54: 0.025
N55: FreseniusKabi | P55: Rehydrex 50 mg/ml | R55: 500 | S55: 1000 | T55: 0.05
N56: Braun | P56: Salidex | R56: 500 | S56: 1000 | T56: 0.035
B59: >>>>>>> | C59: ENTERAL TUBE SOLUTIONS | J59: ml | L59: ml | M59: ml | N59: ml | O59: kcal/ml | P59: kcal/ml | Q59: g/ml | R59: g/ml | S59: g/ml | T59: g/ml | U59: g/ml | V59: g/ml | W59: ratio
B60: Leverandør | D60: Produktnavn ( HUSK alfabetisk ) | J60: Pakn. | L60: Pakn. | M60: Pakn. | N60: Pakn. | O60: Total Kalorier | P60: Non-prot Kalorier | Q60: Protein | R60: Karboh | S60: Fett | T60: Glutamin | U60: EPA | V60: DHA | W60: omega6:omega3
B61: FreseniusKabi | D61: Barn: Frebini energy / energy fibre | L61: 500 | O61: 1.5 | P61: 1.35 | Q61: 0.038 | R61: 0.187 | S61: 0.067 | T61: 0.0034 | U61: 0.0007 | V61: 0.0005 | W61: 1.8
B62: FreseniusKabi | D62: Barn: Frebini original / original fibre | L62: 500 | O62: 1 | P62: 0.9 | Q62: 0.026 | R62: 0.125 | S62: 0.044 | T62: 0.0022 | U62: 0.0005 | V62: 0.0004 | W62: 1.8
B63: Nutricia | D63: Barn: Infatrini | J63: 100 | L63: 500 | O63: 1 | P63: 0.85 | Q63: 0.026 | R63: 0.103 | S63: 0.054 | T63: =Q63*0.08 -> 0.00208 | U63: 2.6e-05 | V63: 0.000103
B64: Nestle | D64: Barn: Isosource Junior / Fibre | L64: 500 | O64: 1 | P64: 0.89 | Q64: 0.028 | R64: 0.13 | S64: 0.044 | T64: 0.00224 | U64: 0.00012 | V64: 0.00024 | W64: 8
B65: Nestle | D65: Barn: Isosource Junior Energy Fibre | L65: 500 | O65: 1.5 | P65: 1.34 | Q65: 0.0375 | R65: 0.185 | S65: 0.067 | T65: 0.003 | U65: 0.00016 | V65: 0.00032 | W65: 6.666666667
B66: Nestle | D66: Barn: Minimax ( for children ) | J66: 200 | O66: 1.2 | P66: 1.072 | Q66: 0.032 | R66: 0.118 | S66: 0.066 | T66: 0.00256 | U66: 0 | V66: 0 | W66: 9
B67: Nutricia | D67: Barn: Nutrini / Multi Fibre | L67: 500 | O67: 1 | P67: 0.82 | Q67: 0.025 | R67: 0.125 | S67: 0.044 | T67: 0.002 | U67: 8.57e-05 | V67: 0.000365
B68: Nutricia | D68: Barn: Nutrini Energy / Energy Multi Fibre | L68: 500 | O68: 1.5 | P68: 1.23 | Q68: 0.041 | R68: 0.185 | S68: 0.067 | T68: 0.00328 | U68: 0.000128 | V68: 0.000533
B69: Nutricia | D69: Barn: Nutrini Low Energy Multi Fibre | L69: 500 | O69: 0.75 | P69: 0.67 | Q69: 0.021 | R69: 0.093 | S69: 0.033 | T69: 0.00168 | U69: 6.4e-05 | V69: 0.000265
B70: Nutricia | D70: Barn: Nutrini Peptisorb | L70: 500 | O70: 1 | P70: 0.82 | Q70: 0.028 | R70: 0.137 | S70: 0.039 | T70: 0.00224 | U70: 0 | V70: 0
B71: Nutricia | D71: Barn: Nutrinimax / Multifibre | L71: 500 | O71: 1 | P71: 0.86 | Q71: 0.033 | R71: 0.123 | S71: 0.042 | T71: 0.00264 | U71: 8.2e-05 | V71: 0.000339
B72: Nutricia | D72: Barn: Nutrinimax Energy / Energy Multi Fibre | L72: 500 | O72: 1.5 | P72: 1.37 | Q72: 0.049 | R72: 0.185 | S72: 0.063 | T72: 0.00392 | U72: 0.000123 | V72: 0.00051
B73: Nestle | D73: Barn: Peptamen Junior Advance | L73: 500 | O73: 1.5 | P73: 1.28 | Q73: 0.045 | R73: 0.18 | S73: 0.066 | T73: 0.0036 | U73: 0.00034 | V73: 0.00023 | W73: 4
B74: FreseniusKabi | D74: Diben ( low carbohydrate ) | L74: 500 | O74: 1 | P74: 0.82 | Q74: 0.045 | R74: 0.093 | S74: 0.05 | T74: 0.004 | U74: 0.001 | V74: 0.0007 | W74: 3
B75: FreseniusKabi | D75: Diben 1,5 kcal HP ( low carbohydrate+fibre ) | L75: 500 | O75: 1.5 | P75: 1.2 | Q75: 0.075 | R75: 0.131 | S75: 0.07 | T75: 0.006 | U75: 0.0016 | V75: 0.0007 | W75: 2.4
B76: FreseniusKabi | D76: Fresubin 1200 complete ( fibre ) | M76: 1000 | O76: 1.2 | P76: 0.96 | Q76: 0.06 | R76: 0.15 | S76: 0.041 | T76: 0.006 | U76: 0.0003 | V76: 0.0002 | W76: 2.1
B77: FreseniusKabi | D77: Fresubin 1500 complete ( fibre ) | N77: 1500 | O77: 1 | P77: 0.85 | Q77: 0.038 | R77: 0.138 | S77: 0.034 | T77: 0.004 | U77: 0.0002 | V77: 0.0001 | W77: 2.3
B78: FreseniusKabi | D78: Fresubin 1800 complete ( fibre ) | N78: 1500 | O78: 1.2 | P78: 0.96 | Q78: 0.06 | R78: 0.15 | S78: 0.041 | T78: 0.0058 | U78: 0.0003 | V78: 0.0002 | W78: 2.1
B79: FreseniusKabi | D79: Fresubin 2 kcal HP / fibre | L79: 500 | O79: 2 | P79: 1.58 | Q79: 0.1 | R79: 0.167 | S79: 0.1 | T79: =Q79*0.08 -> 0.008 | U79: 0.0007 | V79: 0 | X79: EPA+DHA
B80: FreseniusKabi | D80: Fresubin 2250 complete ( fibre ) | N80: 1500 | O80: 1.5 | P80: 1.28 | Q80: 0.056 | R80: 0.188 | S80: 0.058 | T80: 0.0062 | U80: 0.0003 | V80: 0.0002 | W80: 2.3
B81: FreseniusKabi | D81: Fresubin energy / energy fibre | L81: 500 | M81: 1000 | O81: 1.5 | P81: 1.28 | Q81: 0.056 | R81: 0.188 | S81: 0.058 | T81: 0.0062 | U81: 0.0003 | V81: 0.0002 | W81: 2.3
B82: FreseniusKabi | D82: Fresubin HP ( high protein ) energy | L82: 500 | O82: 1.5 | P82: 0.98 | Q82: 0.075 | R82: 0.17 | S82: 0.058 | T82: 0.007 | U82: 0.0003 | V82: 0.0002 | W82: 4
B83: FreseniusKabi | D83: Fresubin Intensive (prot+malabsorb+low fibre) | L83: 500 | O83: 1.22 | P83: 0.8 | Q83: 0.1 | R83: 0.129 | S83: 0.032 | T83: =Q83*0.08 -> 0.008 | U83: 0.003 | V83: 0 | X83: EPA+DHA, Na: 76 mmol/l, K: 75 mmol/l, Fosfat 23 mmol/l, Selen 105 ug/l
B84: FreseniusKabi | D84: Fresubin original / original fibre | L84: 500 | O84: 1 | P84: 0.85 | Q84: 0.038 | R84: 0.138 | S84: 0.034 | T84: 0.004 | U84: 0.0002 | V84: 0.0001 | W84: 2.3
B85: FreseniusKabi | D85: Fresubin soya fibre | L85: 500 | O85: 1 | P85: 0.85 | Q85: 0.038 | R85: 0.133 | S85: 0.036 | T85: 0.0033 | U85: 0.0002 | V85: 0.0001 | W85: 2.3
B86: FreseniusKabi | D86: Glucose 5 % | J86: 250 | L86: 500 | M86: 1000 | O86: 0.2 | P86: 0.2 | Q86: 0 | R86: 0.05 | S86: 0 | T86: 0 | U86: 0 | V86: 0
B87: FreseniusKabi | D87: Glucose 10 % | L87: 500 | M87: 1000 | O87: 0.4 | P87: 0.4 | Q87: 0 | R87: 0.1 | S87: 0 | T87: 0 | U87: 0 | V87: 0
B88: Nestle | D88: Impact | L88: 500 | O88: 1.01 | P88: 0.786 | Q88: 0.056 | R88: 0.134 | S88: 0.028 | T88: =Q88*0.08 -> 0.00448 | U88: 0.0018 | V88: 0.0013 | W88: 1.428571429
B89: Nestle | D89: Isosource Energy / Fibre | L89: 500 | O89: 1.6 | P89: 1.372 | Q89: 0.061 | R89: 0.193 | S89: 0.062 | T89: 0.00488 | U89: 0.00043 | V89: 0.00029 | W89: 4
B90: Nestle | D90: Isosource Mix | L90: 500 | M90: 1000 | O90: 1.09 | P90: 0.884 | Q90: 0.044 | R90: 0.14 | S90: 0.037 | T90: 0.00352 | U90: 0.00028 | V90: 0.00019 | W90: 0.33
B91: Nestle | D91: Isosource Protein / Fibre | L91: 500 | O91: 1.3 | P91: 1.03 | Q91: 0.067 | R91: 0.16 | S91: 0.044 | T91: 0.00536 | U91: 0.00034 | V91: 0.00023 | W91: 4
B92: Nestle | D92: Isosource Standard / Fibre | L92: 500 | M92: 1000 | O92: 1 | P92: 0.84 | Q92: 0.039 | R92: 0.135 | S92: 0.034 | T92: 0.00312 | U92: 0.00026 | V92: 0.00017 | W92: 4
B93: Nestle | D93: Novasource Diabet Plus | L93: 500 | O93: 1.23 | P93: 0.96 | Q93: 0.06 | R93: 0.12 | S93: 0.053 | T93: 0.0048 | U93: 0.00029 | V93: 0.00018 | W93: 4
B94: Nestle | D94: Novasource GI Advance | L94: 500 | O94: 1.55 | P94: 1.1 | Q94: 0.096 | R94: 0.175 | S94: 0.047 | T94: 0.00768 | U94: 0 | V94: 0
B95: Nestle | D95: Novasource Junior | J95: 250 | O95: 1 | P95: 0.9 | Q95: 0.025 | R95: 0.138 | S95: 0.039 | T95: 0.002 | U95: 0 | V95: 0
B96: Nutricia | D96: Nutrison / Multi Fibre | L96: 500 | M96: 1000 | O96: 1 | P96: 0.84 | Q96: 0.04 | R96: 0.123 | S96: 0.039 | T96: 0.0025 | U96: 0.000195 | V96: 0.00014 | W96: 4.86
B97: Nutricia | D97: Nutrison 1000 Complete Multi Fibre | M97: 1000 | O97: 1.04 | P97: 0.83 | Q97: 0.055 | R97: 0.113 | S97: 0.037 | T97: =Q97*0.08 -> 0.0044 | U97: 0.000296 | V97: 0.000211 | W97: 4.82
B98: Nutricia | D98: Nutrison 1200 Complete Multi Fibre | M98: 1000 | O98: 1.2 | P98: 0.99 | Q98: 0.055 | R98: 0.15 | S98: 0.043 | T98: =Q98*0.08 -> 0.0044 | U98: 0.000296 | V98: 0.000211 | W98: 4.82
B99: Nutricia | D99: Nutrison Advanced Cubison ( + arginin ) | M99: 1000 | O99: 1.03 | P99: 0.8 | Q99: 0.055 | R99: 0.125 | S99: 0.033 | T99: =Q99*0.08 -> 0.0044 | U99: 0 | V99: 0 | W99: 4.93
B100: Nutricia | D100: Nutrison Advanced Diason ( low carboh.+ fibre ) | M100: 1000 | O100: 1.03 | P100: 0.87 | Q100: 0.043 | R100: 0.113 | S100: 0.042 | T100: =Q100*0.08 -> 0.00344 | U100: 0 | V100: 0 | W100: 8.23
B101: Nutricia | D101: Nutrison Advanced Diason Low Energy ( fibre ) | M101: 1000 | O101: 0.748 | P101: 0.62 | Q101: 0.032 | R101: 0.084 | S101: 0.032 | T101: =Q101*0.08 -> 0.00256 | U101: 0 | V101: 0 | W101: 7.65
B102: Nutricia | D102: Nutrison Advanced Peptisorb (malabsorb) | M102: 1000 | O102: 1.02 | P102: 0.86 | Q102: 0.04 | R102: 0.176 | S102: 0.017 | T102: 0.0014 | U102: 0 | V102: 0 | W102: 7.79
B103: Nutricia | D103: Nutrison Advanced Protison (prot+fibre) | L103: 500 | O103: 1.28 | P103: 1.01 | Q103: 0.075 | R103: 0.154 | S103: 0.037 | T103: 0.006 | U103: 0.0003 | V103: 0.0002 | W103: 5.2
B104: Nutricia | D104: Nutrison Concentrated | L104: 500 | O104: 2 | P104: 1.7 | Q104: 0.075 | R104: 0.201 | S104: 0.1 | T104: 0.0047 | U104: 0 | V104: 0 | W104: 4.81
B105: Nutricia | D105: Nutrison Energy / Multi Fibre | L105: 500 | M105: 1000 | O105: 1.5 | P105: 1.26 | Q105: 0.06 | R105: 0.185 | S105: 0.058 | T105: 0.0036 | U105: 0.0002 | V105: 0.00014 | W105: 4.86
B106: Nutricia | D106: Nutrison Low Energy Multi Fibre | M106: 1000 | O106: 0.75 | P106: 0.63 | Q106: 0.03 | R106: 0.092 | S106: 0.029 | T106: =Q106*0.08 -> 0.0024 | U106: 0 | V106: 0 | W106: 4.76
B107: Nutricia | D107: Nutrison Low Sodium | M107: 1000 | O107: 1 | P107: 0.84 | Q107: 0.04 | R107: 0.123 | S107: 0.039 | T107: 0.0028 | U107: 0 | V107: 0 | W107: 4.86
B108: Nutricia | D108: Nutrison MCT ( fettmalabsorb ) | M108: 1000 | O108: 1 | P108: 0.8 | Q108: 0.05 | R108: 0.126 | S108: 0.033 | T108: =Q108*0.08 -> 0.004 | U108: 0 | V108: 0 | W108: 5.19
B109: Nutricia | D109: Nutrison Protein Intense ( helprot+low fibre) | L109: 500 | O109: 1.26 | P109: 0.85 | Q109: 0.1 | R109: 0.104 | S109: 0.049 | T109: 0.008 | U109: 0.0003 | V109: 0.00021 | W109: 2.9
B110: Nutricia | D110: Nutrison Protein Plus Multi Fibre | L110: 500 | M110: 1000 | O110: 1.28 | P110: 1.01 | Q110: 0.063 | R110: 0.141 | S110: 0.049 | T110: 0.0045 | U110: 0.0003 | V110: 0.00021 | W110: 2.7
B111: Nutricia | D111: Nutrison Soya/Soya Multifibre ( melkeprotein allergi ) | M111: 1000 | O111: 1 | P111: 0.84 | Q111: 0.04 | R111: 0.123 | S111: 0.039 | T111: =Q111*0.08 -> 0.0032 | U111: 0 | V111: 0 | W111: 4.92
B112: Abbott | D112: OXEPA - Ross ready to hang | M112: 1000 | O112: 1.5 | P112: 1.25 | Q112: 0.063 | R112: 0.106 | S112: 0.094 | T112: 0.00504 | U112: 0.0046 | V112: 0 | W112: 1.8 | X112: GLA: 0,0040 Vit C: 0,85 mg/ml Vit E: 0,32 U/ml
B113: Nestle | D113: Peptamen ( malabsorption ) | L113: 500 | O113: 1 | P113: 0.84 | Q113: 0.04 | R113: 0.127 | S113: 0.037 | T113: 0.0032 | U113: 0 | V113: 0 | W113: 7
B114: Nestle | D114: Peptamen AF ( hydrol.protein) | L114: 500 | O114: 1.52 | P114: 1.12 | Q114: 0.094 | R114: 0.14 | S114: 0.065 | T114: 0.00752 | U114: 0.0027 | V114: 0 | W114: 2.3 | X114: EPA+DHA
B115: Nestle | D115: Peptamen HN ( malabsorb ) | L115: 500 | O115: 1.33 | P115: 1.06 | Q115: 0.066 | R115: 0.156 | S115: 0.049 | T115: 0.00528 | U115: 0 | V115: 0
B116: Nestle | D116: Peptamen Intens ( hydrol.prot - høy BMI) | L116: 500 | O116: 1 | P116: 0.62 | Q116: 0.093 | R116: 0.073 | S116: 0.037 | T116: 0.00744 | U116: 0.0017 | V116: 0 | W116: 1.2 | X116: EPA+DHA
B117: FreseniusKabi | D117: Reconvan | L117: 500 | O117: 1 | P117: 0.78 | Q117: 0.055 | R117: 0.12 | S117: 0.033 | T117: 0.01 | U117: 0.0015 | V117: 0.001 | W117: 2
B118: Nutricia | D118: Sterile Water | M118: 1000 | O118: 0 | P118: 0 | Q118: 0 | R118: 0 | S118: 0 | T118: 0 | U118: 0 | V118: 0
B119: FreseniusKabi | D119: Supportan ( cancer ) | L119: 500 | O119: 1.5 | P119: 1.1 | Q119: 0.1 | R119: 0.124 | S119: 0.067 | T119: 0.0074 | U119: 0.004 | V119: 0.0017 | W119: 1.5
B120: FreseniusKabi | D120: Survimed OPD (malabsorb) | L120: 500 | M120: 1000 | O120: 1 | P120: 0.78 | Q120: 0.045 | R120: 0.143 | S120: 0.028 | T120: 0.004 | U120: 0.0002 | V120: 0.0002 | W120: 3.5
B121: FreseniusKabi | D121: Survimed OPD HN (prot+malabsorb ) | L121: 500 | O121: 1.33 | P121: 1.04 | Q121: 0.067 | R121: 0.183 | S121: 0.037 | T121: 0.006 | U121: 0.0003 | V121: 0.0003 | W121: 3.6
B122: >>>>>>> | C122: ENTERAL NUTRITIONAL DRINKS | J122: ml | L122: ml | M122: ml | N122: ml | O122: kcal/ml | P122: kcal/ml | Q122: g/ml | R122: g/ml | S122: g/ml | T122: g/ml | U122: g/ml | V122: g/ml | W122: ratio
B123: Leverandør | D123: Produktnavn ( HUSK alfabetisk ) | J123: Pakn. | L123: Pakn. | M123: Pakn. | N123: Pakn. | O123: Total Kalorier | P123: Non-prot Kalorier | Q123: Protein | R123: Karboh | S123: Fett | T123: Glutamin | U123: EPA | V123: DHA | W123: omega6:omega3
B124: FreseniusKabi | D124: Barn: Frebini energy (fibre) Drink | L124: 200 | O124: 1.5 | P124: 1.35 | Q124: 0.038 | R124: 0.187 | S124: 0.067 | T124: =Q124*0.08 -> 0.00304 | U124: 0 | V124: 0 | W124: 2.3
B125: Nutricia | D125: Barn: NutriniKid Multi Fibre | L125: 200 | O125: 1.5 | P125: 1.29 | Q125: 0.034 | R125: 0.188 | S125: 0.068 | T125: 0.00272 | U125: 0 | V125: 0 | W125: 4.79 | X125: 5,2 for appelsin
B126: Nestle | D126: Barn: Resourse MiniMax Næringsdrikk | L126: 200 | O126: 1.2 | P126: 1.072 | Q126: 0.038 | R126: 0.137 | S126: 0.056 | T126: 0.00304 | U126: 0 | V126: 0 | W126: 9
B127: Tine | D127: Biola Naturell | L127: 200 | N127: 1000 | O127: 0.45 | P127: 0.31 | Q127: 0.034 | R127: 0.045 | S127: 0.015 | T127: 0.00272 | U127: 0 | V127: 0
B128: Nutricia | D128: Cubitan | L128: 200 | O128: 1.28 | P128: 0.88 | Q128: 0.1 | R128: 0.142 | S128: 0.035 | T128: 0.008 | U128: 0 | V128: 0 | W128: 5.11
B129: FreseniusKabi | D129: Fresubin 2 kcal (fibre) Drink | L129: 200 | O129: 2 | P129: 1.6 | Q129: 0.1 | R129: 0.225 | S129: 0.078 | T129: 0.008 | U129: 0 | V129: 0 | W129: 4.2
B130: FreseniusKabi | D130: Fresubin 3,2 kcal (fibre) Drink | L130: 125 | O130: 3.2 | P130: 2.6 | Q130: 0.16 | R130: 0.28 | S130: 0.16 | T130: 0.0128 | U130: 0 | V130: 0
B131: FreseniusKabi | D131: Fresubin 5 kcal SHOT | J131: 120 | O131: 5 | P131: 5 | Q131: 0 | R131: 0.04 | S131: 0.54 | T131: 0 | U131: 0 | V131: 0
B132: FreseniusKabi | D132: Fresubin Diben Drink | L132: 200 | O132: 1.5 | P132: 1.2 | Q132: 0.075 | R132: 0.131 | S132: 0.07 | T132: 0.006 | U132: 0 | V132: 0
B133: FreseniusKabi | D133: Fresubin Energy (fibre) Drink | L133: 200 | O133: 1.5 | P133: 1.28 | Q133: 0.056 | R133: 0.188 | S133: 0.058 | T133: 0.00448 | U133: 0 | V133: 0 | W133: 2.6
B134: FreseniusKabi | D134: Fresubin Hepa Drink | L134: 200 | O134: 1.3 | P134: 1.14 | Q134: 0.039 | R134: 0.174 | S134: 0.048 | T134: 0.00312 | U134: 0 | V134: 0
B135: FreseniusKabi | D135: Fresubin Jucy Drink | L135: 200 | O135: 1.5 | P135: 1.335 | Q135: 0.041 | R135: 0.334 | S135: 0 | T135: 0.00328 | U135: 0 | V135: 0
B136: FreseniusKabi | D136: Fresubin Orginal Drink | L136: 200 | O136: 1 | P136: 0.85 | Q136: 0.038 | R136: 0.138 | S136: 0.034 | T136: 0.00304 | U136: 0 | V136: 0 | W136: 2.6
B137: FreseniusKabi | D137: Fresubin Protein Energy Drink | L137: 200 | O137: 1.5 | P137: 1.1 | Q137: 0.1 | R137: 0.124 | S137: 0.067 | T137: 0.008 | U137: 0 | V137: 0 | W137: 4
B138: FreseniusKabi | D138: Fresubin Thickened Stage 1 / 2 (dysphagi) | L138: 200 | O138: 1.5 | P138: 1.1 | Q138: 0.101 | R138: 0.122 | S138: 0.067 | T138: 0.00808 | U138: 0 | V138: 0
B139: FreseniusKabi | D139: Fresubin YoDrink | L139: 200 | O139: 1.5 | P139: 1.2 | Q139: 0.075 | R139: 0.195 | S139: 0.047 | T139: 0.006 | U139: 0 | V139: 0
B140: FreseniusKabi | D140: Glutamine Plus Neutral | L140: 200 | O140: 0.4 | P140: 0.2 | Q140: 0.05 | R140: 0.05 | S140: 0 | T140: 0.05 | U140: 0 | V140: 0
B141: FreseniusKabi | D141: Glutamine Plus Orange | L141: 200 | O141: 0.39 | P141: 0.19 | Q141: 0.05 | R141: 0.047 | S141: 0 | T141: 0.05 | U141: 0 | V141: 0
B142: Nutricia | D142: Nutridrink ( Multi Fibre ) | L142: 200 | O142: 1.5 | P142: 1.26 | Q142: 0.06 | R142: 0.184 | S142: 0.058 | T142: 0.0046 | U142: 0 | V142: 0 | W142: 4.79 | X142: 5,2 for appelsin
B143: Nutricia | D143: Nutridrink Compact fibre | J143: 125 | O143: 2.4 | P143: 2.02 | Q143: 0.094 | R143: 0.252 | S143: 0.104 | T143: =Q143*0.08 -> 0.00752 | U143: 0 | V143: 0 | W143: 4.82
B144: Nutricia | D144: Nutridrink Compact Protein | J144: 125 | O144: 2.4 | P144: 1.82 | Q144: 0.144 | R144: 0.244 | S144: 0.094 | T144: =Q144*0.08 -> 0.01152 | U144: 0 | V144: 0 | W144: 4.82
B145: Nutricia | D145: Nutridrink Crème | J145: 125 | O145: 1.6 | P145: 1.21 | Q145: 0.095 | R145: 0.192 | S145: 0.05 | T145: =Q145*0.08 -> 0.0076 | U145: 0 | V145: 0 | W145: 4.7
B146: Nutricia | D146: Nutridrink Fruit | J146: 150 | O146: 1.33 | P146: 1.03 | Q146: 0.07 | R146: 0.17 | S146: 0.04 | T146: =Q146*0.08 -> 0.0056 | U146: 0 | V146: 0 | W146: 5.02
B147: Nutricia | D147: Nutridrink Juice style | L147: 200 | O147: 1.5 | P147: 1.34 | Q147: 0.04 | R147: 0.335 | S147: 0 | T147: =Q147*0.08 -> 0.0032 | U147: 0 | V147: 0
B148: Nutricia | D148: Nutridrink Protein | L148: 200 | O148: 1.5 | P148: 1.1 | Q148: 0.1 | R148: 0.156 | S148: 0.053 | T148: 0.0077 | U148: 0 | V148: 0 | W148: 5.1
B149: Nutricia | D149: Nutridrink Yoghurt style | L149: 200 | O149: 1.5 | P149: 1.27 | Q149: 0.06 | R149: 0.187 | S149: 0.058 | T149: 0.003 | U149: 0 | V149: 0 | W149: 4.69
B150: Møller | D150: Omega-3 Tran Møllers ( Vit A+D ) | L150: 250 | O150: 8.1 | P150: 8.1 | Q150: 0 | R150: 0 | S150: 0.9 | T150: 0 | U150: 0.12 | V150: 0.16
B151: Nestle | D151: Oral Impact | L151: 300 | O151: 1.03 | P151: 0.786 | Q151: 0.059 | R151: 0.138 | S151: 0.025 | T151: =Q151*0.1 -> 0.0059 | U151: 0 | V151: 0 | W151: 0.9
B152: Nutricia | D152: preOp | L152: 200 | O152: 0.5 | P152: 0.5 | Q152: 0 | R152: 0.126 | S152: 0 | T152: =Q152*0.08 -> 0 | U152: 0 | V152: 0
B153: FreseniusKabi | D153: Provide Xtra Drink (fettmalabs) | L153: 200 | O153: 1.5 | P153: 1.34 | Q153: 0.04 | R153: 0.335 | S153: 0 | T153: =Q153*0.08 -> 0.0032 | U153: 0 | V153: 0
B154: Nutricia | D154: Renilon 4,0 | J154: 125 | O154: 2 | P154: 1.84 | Q154: 0.04 | R154: 0.235 | S154: 0.1 | T154: =Q154*0.08 -> 0.0032 | U154: 0 | V154: 0 | W154: 6.74
B155: Nutricia | D155: Renilon 7,5 | J155: 125 | O155: 2 | P155: 1.7 | Q155: 0.075 | R155: 0.2 | S155: 0.1 | T155: =Q155*0.08 -> 0.006 | U155: 0 | V155: 0 | W155: 6.73
B156: Nestle | D156: Resource 2,0 / Fibre | L156: 200 | O156: 2 | P156: 1.64 | Q156: 0.09 | R156: 0.214 | S156: 0.087 | T156: =Q156*0.1 -> 0.009 | U156: 0 | V156: 0 | W156: 2.7
B157: Nestle | D157: Resource 2,5 Compact / Fibre | J157: 125 | O157: 2.5 | P157: 2.08 | Q157: 0.096 | R157: 0.3 | S157: 0.098 | T157: =Q157*0.1 -> 0.0096 | U157: 0 | V157: 0 | W157: 2.3
B158: Nestle | D158: Resource Addera Plus | L158: 200 | O158: 1.25 | P158: 1.09 | Q158: 0.04 | R158: 0.27 | S158: 0 | T158: =Q158*0.08 -> 0.0032 | U158: 0 | V158: 0
B159: Nestle | D159: Resource Komplett Næring 1,5 | L159: 200 | O159: 1.51 | P159: 1.28 | Q159: 0.056 | R159: 0.21 | S159: 0.05 | T159: =Q159*0.1 -> 0.0056 | U159: 0.00084 | V159: 0.00053 | W159: 7
B160: Nestle | D160: Resource Protein | L160: 200 | O160: 1.25 | P160: 0.874 | Q160: 0.094 | R160: 0.14 | S160: 0.035 | T160: =Q160*0.1 -> 0.0094 | U160: 0 | V160: 0 | W160: 2.040816327
B161: Nestle | D161: Resource Senior Activ | L161: 200 | O161: 1.5 | P161: 1.1 | Q161: 0.1 | R161: 0.12 | S161: 0.065 | T161: =Q161*0.1 -> 0.01 | U161: 0.00084 | V161: 0.00053 | W161: 2.040816327
B162: Nutricia | D162: Respifor | J162: 125 | O162: 1.5 | P162: 1.2 | Q162: 0.075 | R162: 0.225 | S162: 0.033 | T162: =Q162*0.08 -> 0.006 | U162: 0 | V162: 0 | W162: 4.74 | X162: 3,0 for jordbær
B163: FreseniusKabi | D163: Survimed OPD Drink | L163: 200 | O163: 1 | P163: 1.1 | Q163: 0.045 | R163: 0.143 | S163: 0.028 | T163: 0.004 | U163: 0 | V163: 0 | W163: 3.6
B165: >>>>>>>> | C165: PARENTERAL 3-CHAMBRE BAG SOL. | J165: ml | L165: ml | M165: ml | N165: ml | O165: kcal/ml | P165: kcal/ml | Q165: g/ml | R165: g/ml | S165: g/ml | T165: g/ml | U165: g/ml | V165: g/ml | W165: ratio
B166: Leverandør | D166: Produktnavn ( HUSK alfabetisk ) | J166: Pakn. | L166: Pakn. | M166: Pakn. | N166: Pakn. | O166: Total Kalorier | P166: Non-prot Kalorier | Q166: Protein | R166: Karboh | S166: Fett | T166: Glutamin | U166: EPA | V166: DHA | W166: omega6:omega3
B167: Baxter | D167: Finomel (N8-balanserte lipider) | J167: 1085 | L167: 1435 | M167: 1820 | O167: 1.09 | P167: 0.89 | Q167: 0.051 | R167: 0.127 | S167: 0.041 | T167: 0 | U167: 0 | V167: 0.0026 | X167: EPA+DHA
B168: Baxter | D168: Finomel perifer | J168: 1085 | L168: 1450 | M168: 2020 | O168: 0.69 | P168: 0.57 | Q168: 0.031 | R168: 0.071 | S168: 0.029 | T168: 0 | U168: 0 | V168: 0.0019 | X168: EPA+DHA
B169: FreseniusKabi | D169: Glucose 5 % | J169: 250 | L169: 500 | M169: 1000 | O169: 0.2 | P169: 0.2 | Q169: 0 | R169: 0.05 | S169: 0 | T169: 0 | U169: 0 | V169: 0
B170: FreseniusKabi | D170: Glucose 10 % | L170: 500 | O170: 0.4 | P170: 0.4 | Q170: 0 | R170: 0.1 | S170: 0 | T170: 0 | U170: 0 | V170: 0
B171: FreseniusKabi | D171: Glucose 20 % | L171: 500 | O171: 0.8 | P171: 0.8 | Q171: 0 | R171: 0.2 | S171: 0 | T171: 0 | U171: 0 | V171: 0
B172: FreseniusKabi | D172: Kabiven 900 - 2300 kcal | J172: 1026 | L172: 1540 | M172: 2053 | N172: 2566 | O172: 0.9 | P172: 0.78 | Q172: 0.033 | R172: 0.09 | S172: 0.038 | T172: 0 | U172: 0 | V172: 0 | W172: 7
B173: FreseniusKabi | D173: Kabiven Perifer 1000 - 1700 kcal | L173: 1440 | M173: 1920 | N173: 2400 | O173: 0.7 | P173: 0.63 | Q173: 0.023 | R173: 0.06 | S173: 0.035 | T173: 0 | U173: 0 | V173: 0 | W173: 7
B174: Braun | D174: Lipoflex peri | L174: 1250 | M174: 1875 | N174: 2500 | O174: 0.76 | P174: 0.636 | Q174: 0.032 | R174: 0.064 | S174: 0.04 | T174: 0 | U174: 0 | V174: 0
B175: Braun | D175: Lipoflex plus | L175: 1250 | M175: 1875 | N175: 2500 | O175: 1.014 | P175: 0.86 | Q175: 0.038 | R175: 0.12 | S175: 0.04 | T175: 0 | U175: 0 | V175: 0
B176: Braun | D176: Lipoflex special / elektrolyttfri | J176: 625 | L176: 1250 | M176: 1875 | O176: 1.18 | P176: 0.956 | Q176: 0.056 | R176: 0.144 | S176: 0.04 | T176: 0 | U176: 0 | V176: 0
B177: Baxter | D177: Numeta G16 E (barn inntil 2 år) | L177: 500 | O177: 1.03 | P177: 0.93 | Q177: 0.026 | R177: 0.155 | S177: 0.031 | T177: 0 | U177: 0 | V177: 0
B178: Baxter | D178: Numeta G19 E (barn over 2 år) | M178: 1000 | O178: 1.14 | P178: 1.045 | Q178: 0.023 | R178: 0.1915 | S178: 0.028 | T178: 0 | U178: 0 | V178: 0
B179: Baxter | D179: Numeta G19 E UTEN lipider (barn over 2 år) | M179: 775 | O179: 1.11 | P179: 0.99 | Q179: 0.03 | R179: 0.25 | S179: 0 | T179: 0 | U179: 0 | V179: 0
B180: Braun | D180: Nutriflex Omega peri | L180: 1250 | M180: 1875 | N180: 2500 | O180: 0.76 | P180: 0.636 | Q180: 0.032 | R180: 0.064 | S180: 0.04 | T180: 0 | U180: 0 | V180: 0.002 | X180: EPA+DHA
B181: Braun | D181: Nutriflex Omega plus | L181: 1250 | M181: 1875 | N181: 2500 | O181: 1.014 | P181: 0.86 | Q181: 0.038 | R181: 0.12 | S181: 0.04 | T181: 0 | U181: 0 | V181: 0.00248 | W181: 2.7 | X181: EPA+DHA
B182: Braun | D182: Nutriflex Omega special / el.lyttfri | J182: 625 | L182: 1250 | M182: 1875 | N182: 2500 | O182: 1.18 | P182: 0.956 | Q182: 0.056 | R182: 0.144 | S182: 0.04 | T182: 0 | U182: 0 | V182: 0.00248 | W182: 2.7 | X182: EPA+DHA
B183: Baxter | D183: Olimel N12 E / Elektrolyttfri | J183: 650 | L183: 1000 | M183: 1500 | O183: 0.95 | P183: 0.65 | Q183: 0.076 | R183: 0.073 | S183: 0.035 | T183: 0 | U183: 0 | V183: 0.00018 | X183: DHA
B184: Baxter | D184: Olimel N4 E perifer | J184: 1000 | L184: 1500 | M184: 2000 | O184: 0.7012 | P184: 0.6 | Q184: 0.0253 | R184: 0.075 | S184: 0.03 | T184: 0 | U184: 0 | V184: 0
B185: Baxter | D185: Olimel N5 E | L185: 1500 | M185: 2000 | O185: 0.992 | P185: 0.86 | Q185: 0.033 | R185: 0.115 | S185: 0.04 | T185: 0 | U185: 0 | V185: 0.0002 | X185: DHA
B186: Baxter | D186: Olimel N7 E | J186: 1000 | L186: 1500 | M186: 2000 | O186: 1.136 | P186: 0.96 | Q186: 0.044 | R186: 0.14 | S186: 0.04 | T186: 0 | U186: 0 | V186: 0.0002 | X186: DHA
B187: Baxter | D187: Olimel N9 E / Elektrolyttfri | J187: 1000 | L187: 1500 | O187: 1.068 | P187: 0.84 | Q187: 0.057 | R187: 0.11 | S187: 0.04 | T187: 0 | U187: 0 | V187: 0.0002 | X187: DHA
B188: FreseniusKabi | D188: SMOF Kabiven 550 - 2700 kcal | I188: 493 | J188: 986 | L188: 1477 | M188: 1970 | N188: 2463 | O188: 1.1 | P188: 0.89 | Q188: 0.05 | R188: 0.12 | S188: 0.038 | T188: 0 | U188: 0.0008892 | V188: 0.0008322 | W188: 2.5
B189: FreseniusKabi | D189: SMOF Kabiven EF 550 - 1600 kcal | I189: 493 | J189: 986 | L189: 1477 | O189: 1.1 | P189: 0.89 | Q189: 0.05 | R189: 0.12 | S189: 0.038 | T189: 0 | U189: 0.0008892 | V189: 0.0008322 | W189: 2.5
B190: FreseniusKabi | D190: SMOF Kabiven extra Nitrogen | I190: 506 | J190: 1012 | L190: 1518 | M190: 2025 | N190: 2531 | O190: 0.89 | P190: 0.63 | Q190: 0.0655 | R190: 0.0847 | S190: 0.029 | T190: 0 | U190: 0.0006768 | V190: 0.0006336 | W190: 2.5
B191: FreseniusKabi | D191: SMOF Kabiven Perifer 800 kcal | L191: 1206 | O191: 0.7 | P191: 0.56 | Q191: 0.031 | R191: 0.07 | S191: 0.028 | T191: 0 | U191: 0.00065772 | V191: 0.00061572 | W191: 2.5
B192: FreseniusKabi | D192: SMOF Kabiven Perifer 1000 kcal | M192: 1448 | O192: 0.7 | P192: 0.56 | Q192: 0.031 | R192: 0.07 | S192: 0.028 | T192: 0 | U192: 0.00065772 | V192: 0.00061572 | W192: 2.5
B193: FreseniusKabi | D193: SMOF Kabiven Perifer 1300 kcal | M193: 1904 | O193: 0.7 | P193: 0.56 | Q193: 0.031 | R193: 0.07 | S193: 0.028 | T193: 0 | U193: 0.00065772 | V193: 0.00061572
B194: >>>>>>>> | C194: PARENTERAL COMP. AMINOACID SOL. | J194: ml | L194: ml | M194: ml | N194: ml | O194: kcal/ml | P194: kcal/ml | Q194: g/ml | R194: g/ml | S194: g/ml | T194: g/ml | U194: g/ml | V194: g/ml | W194: ratio
B195: Leverandør | D195: Produktnavn ( HUSK alfabetisk ) | J195: Pakn. | L195: Pakn. | M195: Pakn. | N195: Pakn. | O195: Total Kalorier | P195: Non-prot Kalorier | Q195: Protein | R195: Karboh | S195: Fett | T195: Glutamin | U195: EPA | V195: DHA | W195: omega6:omega3
B196: Braun | D196: Aminoplasmal 10% | J196: 250 | L196: 500 | M196: 1000 | O196: 0.4 | P196: 0 | Q196: 0.1 | R196: 0 | S196: 0 | T196: 0 | U196: 0 | V196: 0
B197: FreseniusKabi | D197: Aminosteril N-Hepa 8% | L197: 500 | O197: 0.32 | P197: 0 | Q197: 0.08 | R197: 0 | S197: 0 | T197: 0 | U197: 0 | V197: 0
B198: FreseniusKabi | D198: Aminoven 10% | M198: 1000 | O198: 0.4 | P198: 0 | Q198: 0.1 | R198: 0 | S198: 0 | T198: 0 | U198: 0 | V198: 0
B199: FreseniusKabi | D199: Glavamin | L199: 500 | O199: 0.54 | P199: 0 | Q199: 0.134 | R199: 0 | S199: 0 | T199: 0.02 | U199: 0 | V199: 0
B200: Braun | D200: Nutriflex peri, tokammerpose | M200: 1000 | O200: 0.48 | P200: 0.32 | Q200: 0.04 | R200: 0.088 | S200: 0 | T200: 0 | U200: 0 | V200: 0
B201: Braun | D201: Nutriflex plus, tokammerpose | N201: 2000 | O201: 0.79 | P201: 0.6 | Q201: 0.048 | R201: 0.165 | S201: 0 | T201: 0 | U201: 0 | V201: 0
B202: Braun | D202: Nutriflex special, tokammerpose | M202: 1000 | O202: 1.24 | P202: 0.96 | Q202: 0.07 | R202: 0.264 | S202: 0 | T202: 0 | U202: 0 | V202: 0
B203: FreseniusKabi | D203: PedaMix ( spes. bestilling ) | J203: 250 | L203: 500 | M203: 1000 | O203: 0.47 | P203: 0.4 | Q203: 0.019 | R203: 0.1 | S203: 0 | T203: 0 | U203: 0 | V203: 0
B204: FreseniusKabi | D204: SMOF Kabiven tokammer ( - fett ) | J204: 802 | L204: 1172 | M204: 1596 | N204: 1995 | O204: 0.75 | P204: 0.56 | Q204: 0.05 | R204: 0.12 | S204: 0 | T204: 0 | U204: 0 | V204: 0
B205: FreseniusKabi | D205: Vamin 14 gN/l | L205: 500 | O205: 0.35 | P205: 0 | Q205: 0.084 | R205: 0 | S205: 0 | T205: 0 | U205: 0 | V205: 0
B206: FreseniusKabi | D206: Vamin 18 gN/l | L206: 500 | O206: 0.46 | P206: 0 | Q206: 0.112 | R206: 0 | S206: 0 | T206: 0 | U206: 0 | V206: 0
B207: FreseniusKabi | D207: Vaminolac | J207: 100 | L207: 500 | O207: 0.24 | P207: 0 | Q207: 0.058 | R207: 0 | S207: 0 | T207: 0 | U207: 0 | V207: 0
B208: >>>>>>>> | C208: PARENTERAL COMP. LIPID SOLUTIONS | J208: ml | L208: ml | M208: ml | N208: ml | O208: kcal/ml | P208: kcal/ml | Q208: g/ml | R208: g/ml | S208: g/ml | T208: g/ml | U208: g/ml | V208: g/ml | W208: ratio
B209: Leverandør | D209: Produktnavn ( HUSK alfabetisk ) | J209: Pakn. | L209: Pakn. | M209: Pakn. | N209: Pakn. | O209: Total Kalorier | P209: Non-prot Kalorier | Q209: Protein | R209: Karboh | S209: Fett | T209: Glutamin | U209: EPA | V209: DHA | W209: omega6:omega3
B210: Baxter | D210: ClinOleic 200 mg/ml | J210: 100 | L210: 350 | O210: 2 | P210: 2 | Q210: 0 | R210: 0 | S210: 0.2 | T210: 0 | U210: 0 | V210: 0.001 | X210: DHA
B211: FreseniusKabi | D211: Intralipid 200 mg/ml | J211: 100 | L211: 250 | M211: 500 | O211: 2 | P211: 2 | Q211: 0 | R211: 0 | S211: 0.2 | T211: 0 | U211: 0 | V211: 0
B212: Braun | D212: Lipidem 200 mg/ml | J212: 100 | L212: 250 | M212: 500 | O212: 1.91 | P212: 1.91 | Q212: 0 | R212: 0 | S212: 0.2 | T212: 0 | U212: 0 | V212: 0.013 | W212: 3 | X212: EPA+DHA
... 12 more rows

Sheet Energi - Protein - ESPEN ASPEN
B2: Vurdering av protein og energi mål basert på ESPEN og ASPEN guidelines
P3: ESPEN energi/dag mann | Q3: ESPEN energi/dag kvinne | R3: NutriCalc
G4: IBWm = Singer (energi) | K4: Protein i g/dag = ESPEN | M4: NutriCalc | P4: Enegi/dag BMI 20-25 | Q4: Enegi/dag BMI 20-25 | R4: Energi/dag
G5: 0,9(h-100) | H5: 0,9(h-106) | K5: BMI < 30: 1,4 g/kg x ActW | L5: ActW | M5: v/ IBWpeters | N5: ActW | P5: 25 kcal x ActW | Q5: 25 kcal x ActW | R5: 25 kcal x ABW 0,5 pet
E6: 25 v/BMI>30 | F6: 25 v/BMI>30 | I6: ABW=IBWp+ActW/3 | J6: ABW | K6: ESPEN:BMI > 30: Prot/dag | L6: ESPEN = ASPEN? | M6: Proteinmål | N6: ESPEN | O6: Energi/dag | P6: Energi/dag +15-20 % | Q6: Energi/dag +20-25 % | R6: Energi/dag
B7: BMI | C7: Høyde | D7: ActW | E7: IBW=BMIxh2 | F7: IBWPeterson | G7: IBWm | H7: IBWkvin | I7: ABW ESPEN peters | J7: 0,5pet | K7: Prot 1,3 g/kg ABW ESPENpet | L7: Prot/IBWm | M7: g/kgIBW/d | N7: Prot/IBWpet | O7: 25 kcal/kgIBWm | P7: ESPENm BMI > 25-30 | Q7: ESPENkvin BMI > 25-30 | R7: 25 kcal/kgIBWpetterson
B8: =D8/(C8/100*C8/100) -> 20.76124567 | C8: 170 | D8: 60 | E8: =23*C8/100*C8/100 -> 66.47 | F8: =2.2*23+3.5*23*(C8/100-1.5) -> 66.7 | G8: =0.9*(C8-100) -> 63 | H8: =0.9*(C8-106) -> 57.6 | J8: =F8+(D8-F8)*0.5 -> 63.35 | K8: =1.4*D8 -> 84 | L8: =K8/D8 -> 1.4 | M8: =IF(AND(B8<=45,B8>24),(B8+9)/24,(IF(B8<=24,1.4,2.2))) -> 1.4 | N8: =K8/D8 -> 1.4 | O8: =25*G8 -> 1575 | P8: =25*D8 -> 1500 | Q8: =25*D8 -> 1500 | R8: =25*J8 -> 1583.75
B9: =D9/(C9/100*C9/100) -> 22.49134948 | C9: =C8 -> 170 | D9: 65 | E9: =23*C9/100*C9/100 -> 66.47 | F9: =2.2*23+3.5*23*(C9/100-1.5) -> 66.7 | G9: =0.9*(C9-100) -> 63 | H9: =0.9*(C9-106) -> 57.6 | J9: 65.85 | K9: =1.4*D9 -> 91 | L9: =K9/D9 -> 1.4 | M9: =IF(AND(B9<=45,B9>24),(B9+9)/24,(IF(B9<=24,1.4,2.2))) -> 1.4 | N9: =K9/D9 -> 1.4 | O9: 1575 | P9: =25*D9 -> 1625 | Q9: =25*D9 -> 1625 | R9: =25*J9 -> 1646.25
B10: =D10/(C10/100*C10/100) -> 24.22145329 | C10: =C9 -> 170 | D10: 70 | E10: =23*C10/100*C10/100 -> 66.47 | F10: =2.2*23+3.5*23*(C10/100-1.5) -> 66.7 | G10: 63 | H10: 57.6 | J10: 68.35 | K10: 98 | L10: =K10/G10 -> 1.555555556 | M10: 1.38422722 | N10: =K10/F10 -> 1.469265367 | O10: 1575 | P10: =25*D10 -> 1750 | Q10: =25*D10 -> 1750 | R10: =25*J10 -> 1708.75
B11: =D11/(C11/100*C11/100) -> 25.95155709 | C11: 170 | D11: 75 | E11: =24*C11/100*C11/100 -> 69.36 | F11: =2.2*24+3.5*24*(C11/100-1.5) -> 69.6 | G11: 63 | H11: 57.6 | J11: 72.3 | K11: 105 | L11: 1.666666667 | M11: 1.456314879 | N11: 1.50862069 | O11: 1575 | P11: =O11*1.15 -> 1811.25 | Q11: =25*0.9*(C11-106)*1.2 -> 1728 | R11: =25*F11 -> 1740
B12: 27.6816609 | C12: 170 | D12: 80 | E12: =24*C12/100*C12/100 -> 69.36 | F12: =2.2*24+3.5*24*(C12/100-1.5) -> 69.6 | G12: 63 | H12: 57.6 | J12: 74.8 | K12: 112 | L12: 1.777777778 | M12: 1.528402537 | N12: 1.609195402 | O12: 1575 | P12: =O12*1.15 -> 1811.25 | Q12: =25*0.9*(C12-106)*1.2 -> 1728 | R12: 1740
B13: 29.41176471 | C13: 170 | D13: 85 | E13: =24*C13/100*C13/100 -> 69.36 | F13: =2.2*24+3.5*24*(C13/100-1.5) -> 69.6 | G13: 63 | H13: 57.6 | J13: 77.3 | K13: 119 | L13: 1.888888889 | M13: 1.600490196 | N13: 1.709770115 | O13: 1575 | P13: =O13*1.15 -> 1811.25 | Q13: =25*0.9*(C13-106)*1.2 -> 1728 | R13: 1740
B14: 30.44982699 | C14: 170 | D14: 88 | E14: =24*C14/100*C14/100 -> 69.36 | F14: =2.2*24+3.5*24*(C14/100-1.5) -> 69.6 | G14: 63 | H14: 57.6 | J14: 78.8 | K14: 123.2 | L14: 1.955555556 | M14: 1.643742791 | N14: 1.770114943 | O14: 1575 | P14: =O14*1.15 -> 1811.25 | Q14: =25*0.9*(C14-106)*1.2 -> 1728 | R14: 1740
B15: 31.14186851 | C15: =C13 -> 170 | D15: 90 | E15: =25*C15/100*C15/100 -> 72.25 | F15: =2.2*25+3.5*25*(C15/100-1.5) -> 72.5 | G15: 63 | H15: 57.6 | I15: =F15+D15/3 -> 102.5 | J15: 81.25 | K15: =1.3*I15 -> 133.25 | L15: 2.115079365 | M15: 1.672577855 | N15: 1.837931034 | O15: 1575 | P15: =O15*1.2 -> 1890 | Q15: =25*0.9*(C15-106)*1.25 -> 1800 | R15: 1812.5
B16: 32.87197232 | C16: 170 | D16: 95 | E16: 72.25 | F16: 72.5 | G16: 63 | H16: 57.6 | I16: 104.1666667 | J16: 83.75 | K16: 135.4166667 | L16: 2.149470899 | M16: 1.744665513 | N16: 1.867816092 | O16: 1575 | P16: 1890 | Q16: =25*0.9*(C16-106)*1.25 -> 1800 | R16: 1812.5
B17: 34.60207612 | C17: 170 | D17: 100 | E17: 72.25 | F17: 72.5 | G17: 63 | H17: 57.6 | I17: 105.8333333 | J17: 86.25 | K17: 137.5833333 | L17: 2.183862434 | M17: 1.816753172 | N17: 1.897701149 | O17: 1575 | P17: 1890 | Q17: =25*0.9*(C17-106)*1.25 -> 1800 | R17: 1812.5
B18: 36.33217993 | C18: 170 | D18: 105 | E18: 72.25 | F18: 72.5 | G18: 63 | H18: 57.6 | I18: 107.5 | J18: 88.75 | K18: 139.75 | L18: 2.218253968 | M18: 1.88884083 | N18: 1.927586207 | O18: 1575 | P18: 1890 | Q18: 1800 | R18: 1812.5
B19: 38.06228374 | C19: 170 | D19: 110 | E19: 72.25 | F19: 72.5 | G19: 63 | H19: 57.6 | I19: 109.1666667 | J19: 91.25 | K19: 141.9166667 | L19: 2.252645503 | M19: 1.960928489 | N19: 1.957471264 | O19: 1575 | P19: 1890 | Q19: 1800 | R19: 1812.5
B20: 39.79238754 | C20: 170 | D20: 115 | E20: 72.25 | F20: 72.5 | G20: 63 | H20: 57.6 | I20: 110.8333333 | J20: 93.75 | K20: 144.0833333 | L20: 2.287037037 | M20: 2.033016148 | N20: 1.987356322 | O20: 1575 | P20: 1890 | Q20: 1800 | R20: 1812.5
B21: 40.38062284 | C21: 170 | D21: 116.7 | E21: 72.25 | F21: 72.5 | G21: 63 | H21: 57.6 | I21: 111.4 | J21: 94.6 | K21: 144.82 | L21: 2.298730159 | M21: 2.057525952 | N21: 1.997517241 | O21: 1575 | P21: 1890 | Q21: 1800 | R21: 1812.5
B22: 41.52249135 | C22: =C20 -> 170 | D22: 120 | E22: 72.25 | F22: 72.5 | G22: 63 | H22: 57.6 | I22: 112.5 | J22: 96.25 | K22: 146.25 | L22: 2.321428571 | M22: 2.105103806 | N22: 2.017241379 | O22: 1575 | P22: 1890 | Q22: 1800 | R22: 1812.5
B23: 43.25259516 | C23: 170 | D23: 125 | E23: 72.25 | F23: 72.5 | G23: 63 | H23: 57.6 | I23: 114.1666667 | J23: 98.75 | K23: 148.4166667 | L23: 2.355820106 | M23: 2.177191465 | N23: 2.047126437 | O23: 1575 | P23: 1890 | Q23: 1800 | R23: 1812.5
B24: 44.98269896 | C24: 170 | D24: 130 | E24: 72.25 | F24: =2.2*25+3.5*25*(C24/100-1.5) -> 72.5 | G24: 63 | H24: 57.6 | I24: 115.8333333 | J24: 101.25 | K24: 150.5833333 | L24: 2.39021164 | M24: 2.249279123 | N24: 2.077011494 | O24: 1575 | P24: 1890 | Q24: 1800 | R24: 1812.5
B25: 46.71280277 | C25: 170 | D25: 135 | E25: 72.25 | F25: 72.5 | G25: 63 | H25: 57.6 | I25: 117.5 | J25: 103.75 | K25: 152.75 | L25: 2.424603175 | M25: 2.2 | N25: 2.106896552 | O25: 1575 | P25: 1890 | Q25: 1800 | R25: 1812.5
B26: 48.44290657 | C26: 170 | D26: 140 | E26: 72.25 | F26: 72.5 | G26: 63 | H26: 57.6 | I26: 119.1666667 | J26: 106.25 | K26: 154.9166667 | L26: 2.458994709 | M26: 2.2 | N26: 2.136781609 | O26: 1575 | P26: 1890 | Q26: 1800 | R26: 1812.5
B27: 50.44982699 | C27: 170 | D27: 145.8 | E27: 72.25 | F27: 72.5 | G27: 63 | H27: 57.6 | I27: 121.1 | J27: 109.15 | K27: 157.43 | L27: 2.498888889 | M27: 2.2 | N27: 2.171448276 | O27: 1575 | P27: 1890 | Q27: 1800 | R27: 1812.5
B28: 51.90311419 | C28: 170 | D28: 150 | E28: 72.25 | F28: 72.5 | G28: 63 | H28: 57.6 | I28: 121 | J28: 111.25 | K28: 157.3 | L28: 2.496825397 | M28: 2.2 | N28: 2.169655172 | O28: 1575 | P28: 1890 | Q28: 1800 | R28: 1812.5
B29: 53.63321799 | C29: 170 | D29: 155 | E29: 72.25 | F29: 72.5 | G29: 63 | H29: 57.6 | I29: 121 | J29: 113.75 | K29: 157.3 | L29: 2.496825397 | M29: 2.2 | N29: 2.169655172 | O29: 1575 | P29: 1890 | Q29: 1800 | R29: 1812.5
B30: 55.3633218 | C30: 170 | D30: 160 | E30: 72.25 | F30: 72.5 | G30: 63 | H30: 57.6 | I30: 121 | J30: 116.25 | K30: 157.3 | L30: 2.496825397 | M30: 2.2 | N30: 2.169655172 | O30: 1575 | P30: 1890 | Q30: 1800 | R30: 1812.5
B31: 57.09342561 | C31: 170 | D31: 165 | E31: 72.25 | F31: 72.5 | G31: 63 | H31: 57.6 | I31: 121 | J31: 118.75 | K31: =1.3*I31 -> 157.3 | L31: 2.496825397 | M31: 2.2 | N31: 2.169655172 | O31: 1575 | P31: 1890 | Q31: 1800 | R31: 1812.5
B32: 58.82352941 | C32: =C31 -> 170 | D32: 170 | E32: 72.25 | F32: 72.5 | G32: 63 | H32: 57.6 | I32: 121 | J32: 121.25 | K32: =1.3*I32 -> 157.3 | L32: 2.496825397 | M32: =IF(AND(B32<=45,B32>24),(B32+9)/24,(IF(B32<=24,1.4,2.2))) -> 2.2 | N32: 2.169655172 | O32: 1575 | P32: 1890 | Q32: =25*0.9*(C32-106)*1.25 -> 1800 | R32: 1812.5
K34: Protein mål i g/kg/IBW/d : | L34: 2.5 | M34: ASPEN v/IBWm = | N34: =2.2 -> 2.2 | O34: ESPEN v/IBMpeterson
